fUSD/lending_fUSD_20250211
["ID","MTS","AMOUNT","RATE_DAILY","PERIOD"]
[352753145,1739292647506,-500.0,0.00016575,2]
[352753146,1739292647516,-500.0,0.00016575,2]
[352753147,1739292647525,-500.0,0.00016575,2]
[352753148,1739292647534,-500.0,0.00016575,2]
[352753149,1739292647544,-1200.0,0.00016575,2]
[352753150,1739292647554,-500.0,0.00016575,2]
[352753151,1739292647565,-500.0,0.00016575,2]
[352753152,1739292647575,-500.0,0.00016575,2]
[352753153,1739292647584,-500.0,0.00016575,2]
[352753154,1739292647594,-500.0,0.00016575,2]
[352753155,1739292647603,-500.0,0.00016575,2]
[352753156,1739292647613,-500.0,0.00016575,2]
[352753157,1739292647623,-500.0,0.00016575,2]
[352753158,1739292647633,-658.54,0.00016575,2]
[352753159,1739292647642,-500.0,0.00016575,2]
[352753160,1739292647651,-603.9185059,0.00016575,2]
[352753161,1739292647662,-500.0,0.00016575,2]
[352753162,1739292647672,-500.0,0.00016575,2]
[352753163,1739292647682,-500.0,0.00016575,2]
[352753164,1739292647693,-500.0,0.00016575,2]
[352753165,1739292647704,-500.0,0.00016575,2]
[352753166,1739292647715,-500.0,0.00016575,2]
[352753167,1739292647726,-500.0,0.00016575,2]
[352753168,1739292647735,-500.0,0.00016575,2]
[352753169,1739292647751,-500.0,0.00016575,2]
[352753170,1739292647761,-500.0,0.00016575,2]
[352753171,1739292647773,-500.0,0.00016575,2]
[352753172,1739292647784,-500.0,0.00016575,2]
[352753173,1739292647795,-427.12656298,0.00016575,2]
[352753174,1739292647806,-500.0,0.00016575,2]
[352753175,1739292647816,-500.0,0.00016575,2]
[352753176,1739292647827,-460.24,0.00016575,2]
[352753177,1739292647838,-500.0,0.00016575,2]
[352753178,1739292647849,-500.0,0.00016575,2]
[352753179,1739292647861,-500.0,0.00016575,2]
[352753180,1739292647874,-508.63320035,0.00016575,2]
[352753181,1739292647885,-500.0,0.00016575,2]
[352753182,1739292647897,-500.0,0.00016575,2]
[352753183,1739292647907,-500.0,0.00016575,2]
[352753184,1739292647918,-500.0,0.00016575,2]
[352753185,1739292647929,-500.0,0.00016575,2]
[352753186,1739292647940,-500.0,0.00016575,2]
[352753187,1739292647952,-500.0,0.00016575,2]
[352753188,1739292647962,-500.0,0.00016575,2]
[352753189,1739292647973,-708.99,0.00016575,2]
[352753190,1739292647983,-500.0,0.00016575,2]
[352753191,1739292647996,-500.0,0.00016575,2]
[352753192,1739292648007,-500.0,0.00016575,2]
[352753193,1739292648018,-500.0,0.00016575,2]
[352753194,1739292648028,-500.0,0.00016575,2]
[352753195,1739292648039,-500.0,0.00016575,2]
[352753196,1739292648050,-500.0,0.00016575,2]
[352753197,1739292648061,-645.09,0.00016575,2]
[352753198,1739292648072,-442.88,0.00016575,2]
[352753199,1739292648084,-500.0,0.00016575,2]
[352753200,1739292648096,-500.0,0.00016575,2]
[352753201,1739292648108,-620.8,0.00016575,2]
[352753202,1739292648118,-500.0,0.00016575,2]
[352753203,1739292648129,-500.0,0.00016575,2]
[352753204,1739292648140,-500.0,0.00016575,2]
[352753205,1739292648151,-500.0,0.00016575,2]
[352753206,1739292648164,-616.82,0.00016575,2]
[352753207,1739292648175,-533.34,0.00016575,2]
[352753208,1739292648186,-500.0,0.00016575,2]
[352753209,1739292648197,-225.62,0.00016575,2]
[352753210,1739292648208,-500.0,0.00016575,2]
[352753211,1739292648219,-512.37,0.00016575,2]
[352753212,1739292648230,-500.0,0.00016575,2]
[352753213,1739292648242,-500.0,0.00016575,2]
[352753214,1739292648254,-500.0,0.00016575,2]
[352753215,1739292648265,-500.0,0.00016575,2]
[352753216,1739292648276,-626.01,0.00016575,2]
[352753217,1739292648287,-500.0,0.00016575,2]
[352753218,1739292648298,-422.58449926,0.00016575,2]
[352753219,1739292648311,-593.14,0.00016575,2]
[352753220,1739292648322,-500.0,0.00016575,2]
[352753221,1739292648334,-500.0,0.00016575,2]
[352753222,1739292648344,-681.21,0.00016575,2]
[352753223,1739292648356,-500.0,0.00016575,2]
[352753224,1739292648367,-500.0,0.00016575,2]
[352753225,1739292648378,-500.0,0.00016575,2]
[352753226,1739292648389,-460.11430472,0.00016575,2]
[352753227,1739292648399,-480.53,0.00016575,2]
[352753228,1739292648410,-500.0,0.00016575,2]
[352753229,1739292648421,-565.98,0.00016575,2]
[352753230,1739292648432,-500.0,0.00016575,2]
[352753231,1739292648442,-610.07,0.00016575,2]
[352753232,1739292648452,-151.0,0.00016575,2]
[352753233,1739292648464,-500.0,0.00016575,2]
[352753234,1739292648475,-500.0,0.00016575,2]
[352753235,1739292648486,-500.0,0.00016575,2]
[352753236,1739292648497,-500.0,0.00016575,2]
[352753237,1739292648508,-653.33,0.00016575,2]
[352753238,1739292648519,-500.0,0.00016575,2]
[352753239,1739292648530,-500.0,0.00016575,2]
[352753240,1739292648541,-500.0,0.00016575,2]
[352753241,1739292648551,-500.0,0.00016575,2]
[352753242,1739292648562,-500.0,0.00016575,2]
[352753243,1739292648572,-319.72,0.00016575,2]
[352753244,1739292648583,-500.0,0.00016575,2]
[352753245,1739292648594,-575.35,0.00016575,2]
[352753246,1739292648605,-543.76,0.00016575,2]
[352753247,1739292648616,-500.0,0.00016575,2]
[352753248,1739292648627,-500.0,0.00016575,2]
[352753249,1739292648638,-560.98,0.00016575,2]
[352753250,1739292648649,-500.0,0.00016575,2]
[352753251,1739292648661,-500.0,0.00016575,2]
[352753252,1739292648672,-500.0,0.00016575,2]
[352753253,1739292648683,-500.0,0.00016575,2]
[352753254,1739292648695,-500.0,0.00016575,2]
[352753255,1739292648705,-504.72,0.00016575,2]
[352753256,1739292648716,-500.0,0.00016575,2]
[352753257,1739292648728,-500.0,0.00016575,2]
[352753258,1739292648739,-721.21,0.00016575,2]
[352753259,1739292648750,-500.0,0.00016575,2]
[352753260,1739292648760,-500.0,0.00016575,2]
[352753261,1739292648771,-500.0,0.00016575,2]
[352753262,1739292648782,-500.0,0.00016575,2]
[352753263,1739292648793,-500.0,0.00016575,2]
[352753264,1739292648804,-500.0,0.00016575,2]
[352753265,1739292648814,-312.345054,0.00016575,2]
[352753266,1739292648824,-500.0,0.00016575,2]
[352753267,1739292648835,-312.345054,0.00016575,2]
[352753268,1739292648846,-500.0,0.00016575,2]
[352753269,1739292648856,-151.0,0.00016575,2]
[352753270,1739292648869,-500.0,0.00016575,2]
[352753271,1739292648880,-686.28,0.00016575,2]
[352753272,1739292648892,-151.0,0.00016575,2]
[352753273,1739292648903,-500.0,0.00016575,2]
[352753274,1739292648915,-500.0,0.00016575,2]
[352753275,1739292648927,-628.87,0.00016575,2]
[352753276,1739292648938,-500.0,0.00016575,2]
[352753277,1739292648951,-500.0,0.00016575,2]
[352753278,1739292648963,-500.0,0.00016575,2]
[352753279,1739292648974,-656.08,0.00016575,2]
[352753280,1739292648985,-500.0,0.00016575,2]
[352753281,1739292648997,-500.0,0.00016575,2]
[352753282,1739292649008,-406.66761477,0.00016575,2]
[352753283,1739292649019,-500.0,0.00016575,2]
[352753284,1739292649031,-973.03,0.00016575,2]
[352753285,1739292649043,-769.16,0.00016575,2]
[352753286,1739292649054,-500.0,0.00016575,2]
[352753287,1739292649065,-500.0,0.00016575,2]
[352753288,1739292649075,-500.0,0.00016575,2]
[352753289,1739292649086,-420.28,0.00016575,2]
[352753290,1739292649096,-151.0,0.00016575,2]
[352753291,1739292649108,-500.0,0.00016575,2]
[352753292,1739292649119,-500.0,0.00016575,2]
[352753293,1739292649129,-500.0,0.00016575,2]
[352753294,1739292649141,-2633.29,0.00016575,2]
[352753295,1739292649151,-500.0,0.00016575,2]
[352753296,1739292649162,-608.46,0.00016575,2]
[352753297,1739292649173,-592.87592365,0.00016575,2]
[352753298,1739292649184,-500.0,0.00016575,2]
[352753299,1739292649197,-500.0,0.00016575,2]
[352753300,1739292649208,-500.0,0.00016575,2]
[352753301,1739292649219,-500.0,0.00016575,2]
[352753302,1739292649229,-562.42,0.00016575,2]
[352753303,1739292649240,-702.19,0.00016575,2]
[352753304,1739292649251,-500.0,0.00016575,2]
[352753305,1739292649262,-151.0,0.00016575,2]
[352753306,1739292649272,-151.0,0.00016575,2]
[352753307,1739292649283,-500.0,0.00016575,2]
[352753308,1739292649293,-500.0,0.00016575,2]
[352753309,1739292649304,-603.78,0.00016575,2]
[352753310,1739292649317,-151.0,0.00016575,2]
[352753311,1739292649328,-500.0,0.00016575,2]
[352753312,1739292649338,-500.0,0.00016575,2]
[352753313,1739292649349,-500.0,0.00016575,2]
[352753314,1739292649359,-500.0,0.00016575,2]
[352753315,1739292649369,-500.0,0.00016575,2]
[352753316,1739292649379,-500.0,0.00016575,2]
[352753317,1739292649390,-500.0,0.00016575,2]
[352753318,1739292649400,-500.0,0.00016575,2]
[352753319,1739292649411,-151.324356,0.00016575,2]
[352753320,1739292649421,-500.0,0.00016575,2]
[352753321,1739292649430,-521.19,0.00016575,2]
[352753322,1739292649440,-151.0,0.00016575,2]
[352753323,1739292649453,-500.0,0.00016575,2]
[352753324,1739292649463,-1362.81,0.00016575,2]
[352753325,1739292649473,-500.0,0.00016575,2]
[352753326,1739292649484,-500.0,0.00016575,2]
[352753327,1739292649503,-151.0,0.00016575,2]
[352753328,1739292649513,-500.0,0.00016575,2]
[352753329,1739292649524,-557.52,0.00016575,2]
[352753330,1739292649534,-1147.2,0.00016575,2]
[352753331,1739292649544,-500.0,0.00016575,2]
[352753332,1739292649554,-500.0,0.00016575,2]
[352753333,1739292649564,-500.0,0.00016575,2]
[352753334,1739292649574,-337.254953,0.00016575,2]
[352753335,1739292649583,-500.0,0.00016575,2]
[352753336,1739292649593,-337.254953,0.00016575,2]
[352753337,1739292649603,-681.22,0.00016575,2]
[352753338,1739292649613,-500.0,0.00016575,2]
[352753339,1739292649623,-500.0,0.00016575,2]
[352753340,1739292649632,-765.29,0.00016575,2]
[352753341,1739292649643,-500.0,0.00016575,2]
[352753342,1739292649653,-500.0,0.00016575,2]
[352753343,1739292649663,-500.0,0.00016575,2]
[352753344,1739292649673,-500.0,0.00016575,2]
[352753345,1739292649683,-500.0,0.00016575,2]
[352753346,1739292649693,-500.0,0.00016575,2]
[352753347,1739292649703,-500.0,0.00016575,2]
[352753348,1739292649714,-500.0,0.00016575,2]
[352753349,1739292649725,-500.0,0.00016575,2]
[352753350,1739292649735,-500.0,0.00016575,2]
[352753351,1739292649746,-500.0,0.00016575,2]
[352753352,1739292649756,-500.0,0.00016575,2]
[352753353,1739292649766,-501.89368055,0.00016575,2]
[352753354,1739292649776,-659.27,0.00016575,2]
[352753355,1739292649786,-500.0,0.00016575,2]
[352753356,1739292649797,-500.0,0.00016575,2]
[352753357,1739292649807,-237.042097,0.00016575,2]
[352753358,1739292649817,-500.0,0.00016575,2]
[352753359,1739292649827,-500.0,0.00016575,2]
[352753360,1739292649837,-500.0,0.00016575,2]
[352753361,1739292649847,-237.042097,0.00016575,2]
[352753362,1739292649857,-500.0,0.00016575,2]
[352753363,1739292649870,-500.0,0.00016575,2]
[352753364,1739292649879,-151.0,0.00016575,2]
[352753365,1739292649889,-571.46,0.00016575,2]
[352753366,1739292649899,-500.0,0.00016575,2]
[352753367,1739292649910,-500.0,0.00016575,2]
[352753368,1739292650141,-500.0,0.00016575,2]
[352753369,1739292650159,-500.0,0.00016575,2]
[352753370,1739292650169,-567.07,0.00016575,2]
[352753371,1739292650179,-500.0,0.00016575,2]
[352753372,1739292650189,-500.0,0.00016575,2]
[352753373,1739292650199,-572.70542744,0.00016575,2]
[352753374,1739292650209,-500.0,0.00016575,2]
[352753375,1739292650219,-1328.94,0.00016575,2]
[352753376,1739292650228,-545.69464661,0.00016575,2]
[352753377,1739292650238,-702.14,0.00016575,2]
[352753378,1739292650248,-500.0,0.00016575,2]
[352753379,1739292650258,-500.0,0.00016575,2]
[352753380,1739292650267,-500.0,0.00016575,2]
[352753381,1739292650277,-500.0,0.00016575,2]
[352753382,1739292650287,-500.0,0.00016575,2]
[352753383,1739292650296,-500.0,0.00016575,2]
[352753384,1739292650306,-653.21,0.00016575,2]
[352753385,1739292650315,-490.10437483,0.00016575,2]
[352753386,1739292650325,-500.0,0.00016575,2]
[352753387,1739292650334,-500.0,0.00016575,2]
[352753388,1739292650344,-184.233011,0.00016575,2]
[352753389,1739292650354,-500.0,0.00016575,2]
[352753390,1739292650363,-500.0,0.00016575,2]
[352753391,1739292650373,-500.0,0.00016575,2]
[352753392,1739292650382,-500.0,0.00016575,2]
[352753393,1739292650391,-184.233011,0.00016575,2]
[352753394,1739292650401,-505.62,0.00016575,2]
[352753395,1739292650410,-781.92,0.00016575,2]
[352753396,1739292650419,-500.0,0.00016575,2]
[352753397,1739292650429,-151.0,0.00016575,2]
[352753398,1739292650438,-500.0,0.00016575,2]
[352753399,1739292650447,-500.0,0.00016575,2]
[352753400,1739292650457,-583.69234466,0.00016575,2]
[352753401,1739292650466,-194.628952,0.00016575,2]
[352753402,1739292650476,-151.0,0.00016575,2]
[352753403,1739292650485,-192.57,0.00016575,2]
[352753404,1739292650496,-500.0,0.00016575,2]
[352753405,1739292650505,-768.57,0.00016575,2]
[352753406,1739292650515,-412.116862,0.00016575,2]
[352753407,1739292650524,-382.83,0.00016575,2]
[352753408,1739292650534,-194.628952,0.00016575,2]
[352753409,1739292650544,-412.116862,0.00016575,2]
[352753410,1739292650553,-168.491744,0.00016575,2]
[352753411,1739292650562,-168.491744,0.00016575,2]
[352753412,1739292650571,-168.491744,0.00016575,2]
[352753413,1739292650580,-168.491744,0.00016575,2]
[352753414,1739292650590,-733.07,0.00016575,2]
[352753415,1739292650599,-255.785126,0.00016575,2]
[352753416,1739292650609,-255.785126,0.00016575,2]
[352753417,1739292650619,-341.45584338,0.00016575,2]
[352753418,1739292650628,-500.0,0.00016575,2]
[352753419,1739292650637,-255.785126,0.00016575,2]
[352753420,1739292650647,-255.785126,0.00016575,2]
[352753421,1739292650656,-500.0,0.00016575,2]
[352753422,1739292650666,-500.0,0.00016575,2]
[352753423,1739292650675,-500.0,0.00016575,2]
[352753424,1739292650685,-151.0,0.00016575,2]
[352753425,1739292650695,-607.06,0.00016575,2]
[352753426,1739292650705,-708.15,0.00016575,2]
[352753427,1739292650714,-500.0,0.00016575,2]
[352753428,1739292650725,-1118.08,0.00016575,2]
[352753429,1739292650734,-500.0,0.00016575,2]
[352753430,1739292650745,-500.0,0.00016575,2]
[352753431,1739292650755,-500.0,0.00016575,2]
[352753432,1739292650764,-1638.68,0.00016575,2]
[352753433,1739292650775,-500.0,0.00016575,2]
[352753434,1739292650785,-500.0,0.00016575,2]
[352753435,1739292650795,-500.0,0.00016575,2]
[352753436,1739292650805,-972.23,0.00016575,2]
[352753437,1739292650815,-500.0,0.00016575,2]
[352753438,1739292650825,-155.52456279,0.00016575,2]
[352753439,1739292650834,-1025.95,0.00016575,2]
[352753440,1739292650843,-500.0,0.00016575,2]
[352753441,1739292650853,-849.42,0.00016575,2]
[352753442,1739292650863,-497.25,0.00016575,2]
[352753443,1739292650875,-589.34,0.00016575,2]
[352753444,1739292650885,-500.0,0.00016575,2]
[352753445,1739292650895,-500.0,0.00016575,2]
[352753446,1739292650904,-623.19,0.00016575,2]
[352753447,1739292650914,-949.12,0.00016575,2]
[352753448,1739292650924,-774.19,0.00016575,2]
[352753449,1739292650934,-592.84,0.00016575,2]
[352753450,1739292650944,-500.0,0.00016575,2]
[352753451,1739292650953,-897.44,0.00016575,2]
[352753452,1739292650962,-500.0,0.00016575,2]
[352753453,1739292650972,-500.0,0.00016575,2]
[352753454,1739292650982,-500.0,0.00016575,2]
[352753455,1739292650992,-1236.71,0.00016575,2]
[352753456,1739292651002,-190.04471446,0.00016575,2]
[352753457,1739292651011,-1146.12,0.00016575,2]
[352753458,1739292651021,-500.0,0.00016575,2]
[352753459,1739292651031,-877.02,0.00016575,2]
[352753460,1739292651041,-158.69955998,0.00016575,2]
[352753461,1739292651051,-500.0,0.00016575,2]
[352753462,1739292651060,-500.0,0.00016575,2]
[352753463,1739292651070,-636.96,0.00016575,2]
[352753464,1739292651080,-500.0,0.00016575,2]
[352753465,1739292651089,-500.0,0.00016575,2]
[352753466,1739292651098,-500.0,0.00016575,2]
[352753467,1739292651107,-151.0,0.00016575,2]
[352753468,1739292651117,-151.0,0.00016575,2]
[352753469,1739292651126,-1026.57,0.00016575,2]
[352753470,1739292651135,-851.21,0.00016575,2]
[352753471,1739292651145,-500.0,0.00016575,2]
[352753472,1739292651154,-151.0,0.00016575,2]
[352753473,1739292651164,-1722.06,0.00016575,2]
[352753474,1739292651175,-151.0,0.00016575,2]
[352753475,1739292651184,-500.0,0.00016575,2]
[352753476,1739292651194,-755.82,0.00016575,2]
[352753477,1739292651203,-500.0,0.00016575,2]
[352753478,1739292651212,-500.0,0.00016575,2]
[352753479,1739292651222,-500.0,0.00016575,2]
[352753480,1739292651231,-1007.91,0.00016575,2]
[352753481,1739292651240,-1556.32,0.00016575,2]
[352753482,1739292651250,-743.69,0.00016575,2]
[352753483,1739292651260,-500.0,0.00016575,2]
[352753484,1739292651270,-787.8,0.00016575,2]
[352753485,1739292651279,-500.0,0.00016575,2]
[352753486,1739292651289,-775.23,0.00016575,2]
[352753487,1739292651298,-278.88357017,0.00016575,2]
[352753488,1739292651307,-500.0,0.00016575,2]
[352753489,1739292651317,-151.0,0.00016575,2]
[352753490,1739292651326,-151.0,0.00016575,2]
[352753491,1739292651336,-3453.19,0.00016575,2]
[352753492,1739292651345,-1296.08,0.00016575,2]
[352753493,1739292651355,-500.0,0.00016575,2]
[352753494,1739292651364,-151.0,0.00016575,2]
[352753495,1739292651373,-500.0,0.00016575,2]
[352753496,1739292651383,-4000.0,0.00016575,2]
[352753497,1739292651392,-151.0,0.00016575,2]
[352753498,1739292651402,-1077.77,0.00016575,2]
[352753499,1739292651411,-903.8,0.00016575,2]
[352753500,1739292651421,-1620.87,0.00016575,2]
[352753501,1739292651431,-500.0,0.00016575,2]
[352753502,1739292651440,-500.0,0.00016575,2]
[352753503,1739292651450,-151.0,0.00016575,2]
[352753504,1739292651460,-1360.37,0.00016575,2]
[352753505,1739292651469,-871.16,0.00016575,2]
[352753506,1739292651479,-388.37862682,0.00016575,2]
[352753507,1739292651489,-500.0,0.00016575,2]
[352753508,1739292651497,-500.0,0.00016575,2]
[352753509,1739292651507,-500.0,0.00016575,2]
[352753510,1739292651517,-1745.206006,0.00016575,2]
[352753511,1739292651526,-1044.51,0.00016575,2]
[352753512,1739292651536,-1745.206006,0.00016575,2]
[352753513,1739292651545,-500.0,0.00016575,2]
[352753514,1739292651554,-1892.93,0.00016575,2]
[352753515,1739292651564,-1187.32,0.00016575,2]
[352753516,1739292651573,-500.0,0.00016575,2]
[352753517,1739292651582,-1745.206006,0.00016575,2]
[352753518,1739292651592,-1128.96,0.00016575,2]
[352753519,1739292651602,-1745.206006,0.00016575,2]
[352753520,1739292651612,-500.0,0.00016575,2]
[352753521,1739292651621,-664.21,0.00016575,2]
[352753522,1739292651631,-1085.95,0.00016575,2]
[352753523,1739292651640,-281.02,0.00016575,2]
[352753524,1739292651650,-831.29,0.00016575,2]
[352753525,1739292651660,-151.0,0.00016575,2]
[352753526,1739292651670,-276.316033,0.00016575,2]
[352753527,1739292651679,-1315.41,0.00016575,2]
[352753528,1739292651689,-500.0,0.00016575,2]
[352753529,1739292651698,-1449.55,0.00016575,2]
[352753530,1739292651707,-500.0,0.00016575,2]
[352753531,1739292651716,-1736.09,0.00016575,2]
[352753532,1739292651725,-792.28,0.00016575,2]
[352753533,1739292651735,-1153.98,0.00016575,2]
[352753534,1739292651745,-500.0,0.00016575,2]
[352753535,1739292651754,-500.0,0.00016575,2]
[352753536,1739292651764,-500.0,0.00016575,2]
[352753537,1739292651774,-1628.97,0.00016575,2]
[352753538,1739292651784,-1363.01,0.00016575,2]
[352753539,1739292651794,-2696.96,0.00016575,2]
[352753540,1739292651803,-500.0,0.00016575,2]
[352753541,1739292651813,-1143.92,0.00016575,2]
[352753542,1739292651822,-500.0,0.00016575,2]
[352753543,1739292651831,-628.01,0.00016575,2]
[352753544,1739292651841,-500.0,0.00016575,2]
[352753545,1739292651851,-1164.3,0.00016575,2]
[352753546,1739292651860,-500.0,0.00016575,2]
[352753547,1739292651872,-500.0,0.00016575,2]
[352753548,1739292651882,-1186.05,0.00016575,2]
[352753549,1739292651891,-1316.05,0.00016575,2]
[352753550,1739292651902,-500.0,0.00016575,2]
[352753551,1739292651911,-500.0,0.00016575,2]
[352753552,1739292651921,-500.0,0.00016575,2]
[352753553,1739292651930,-507.5,0.00016575,2]
[352753554,1739292651940,-500.0,0.00016575,2]
[352753555,1739292651952,-1204.14,0.00016575,2]
[352753556,1739292651962,-500.0,0.00016575,2]
[352753557,1739292651971,-500.0,0.00016575,2]
[352753558,1739292651981,-2709.34,0.00016575,2]
[352753559,1739292651991,-500.0,0.00016575,2]
[352753560,1739292652000,-2432.62,0.00016575,2]
[352753561,1739292652011,-1383.14,0.00016575,2]
[352753562,1739292652021,-1113.99,0.00016575,2]
[352753563,1739292652031,-314.80075501,0.00016575,2]
[352753564,1739292652041,-516.51,0.00016575,2]
[352753565,1739292652052,-151.0,0.00016575,2]
[352753566,1739292652061,-770.35,0.00016575,2]
[352753567,1739292652071,-151.0,0.00016575,2]
[352753568,1739292652080,-465.10395289,0.00016575,2]
[352753569,1739292652090,-3406.84,0.00016575,2]
[352753570,1739292652101,-1152.94,0.00016575,2]
[352753571,1739292652110,-500.0,0.00016575,2]
[352753572,1739292652120,-1081.2,0.00016575,2]
[352753573,1739292652130,-694.27,0.00016575,2]
[352753574,1739292652140,-2107.97,0.00016575,2]
[352753575,1739292652150,-500.0,0.00016575,2]
[352753576,1739292652160,-1266.65,0.00016575,2]
[352753577,1739292652169,-500.0,0.00016575,2]
[352753578,1739292652179,-500.0,0.00016575,2]
[352753579,1739292652189,-517.54,0.00016575,2]
[352753580,1739292652198,-151.0,0.00016575,2]
[352753581,1739292652208,-1409.01,0.00016575,2]
[352753582,1739292652217,-760.33,0.00016575,2]
[352753583,1739292652227,-151.0,0.00016575,2]
[352753584,1739292652237,-1622.42,0.00016575,2]
[352753585,1739292652247,-908.49,0.00016575,2]
[352753586,1739292652257,-5500.0,0.00016575,2]
[352753587,1739292652268,-500.0,0.00016575,2]
[352753588,1739292652278,-5500.0,0.00016575,2]
[352753589,1739292652288,-500.0,0.00016575,2]
[352753590,1739292652298,-1394.87,0.00016575,2]
[352753591,1739292652308,-500.0,0.00016575,2]
[352753592,1739292652318,-1146.54,0.00016575,2]
[352753593,1739292652327,-2904.03,0.00016575,2]
[352753594,1739292652337,-5500.0,0.00016575,2]
[352753595,1739292652347,-630.81,0.00016575,2]
[352753596,1739292652357,-5500.0,0.00016575,2]
[352753597,1739292652367,-881.37,0.00016575,2]
[352753598,1739292652376,-500.0,0.00016575,2]
[352753599,1739292652386,-581.55,0.00016575,2]
[352753600,1739292652396,-151.0,0.00016575,2]
[352753601,1739292652406,-151.0,0.00016575,2]
[352753602,1739292652416,-1246.46,0.00016575,2]
[352753603,1739292652425,-500.0,0.00016575,2]
[352753604,1739292652435,-963.63,0.00016575,2]
[352753605,1739292652445,-500.0,0.00016575,2]
[352753606,1739292652455,-500.0,0.00016575,2]
[352753607,1739292652464,-500.0,0.00016575,2]
[352753608,1739292652473,-500.0,0.00016575,2]
[352753609,1739292652482,-500.0,0.00016575,2]
[352753610,1739292652493,-1035.86,0.00016575,2]
[352753611,1739292652503,-1186.79,0.00016575,2]
[352753612,1739292652513,-1512.18,0.00016575,2]
[352753613,1739292652524,-315.36295368,0.00016575,2]
[352753614,1739292652537,-718.14,0.00016575,2]
[352753615,1739292652551,-500.0,0.00016575,2]
[352753616,1739292652564,-500.0,0.00016575,2]
[352753617,1739292652576,-500.0,0.00016575,2]
[352753618,1739292652587,-500.0,0.00016575,2]
[352753619,1739292652599,-151.0,0.00016575,2]
[352753620,1739292652612,-151.0,0.00016575,2]
[352753621,1739292652624,-1350.44,0.00016575,2]
[352753622,1739292652637,-500.0,0.00016575,2]
[352753623,1739292652650,-1320.12,0.00016575,2]
[352753624,1739292652664,-500.0,0.00016575,2]
[352753625,1739292652676,-668.38,0.00016575,2]
[352753626,1739292652687,-500.0,0.00016575,2]
[352753627,1739292652698,-500.0,0.00016575,2]
[352753628,1739292652709,-500.0,0.00016575,2]
[352753629,1739292652722,-862.44,0.00016575,2]
[352753630,1739292652735,-1589.93,0.00016575,2]
[352753631,1739292652748,-985.84,0.00016575,2]
[352753632,1739292652761,-1153.41,0.00016575,2]
[352753633,1739292652774,-1534.98,0.00016575,2]
[352753634,1739292652787,-500.0,0.00016575,2]
[352753635,1739292652801,-500.0,0.00016575,2]
[352753636,1739292652814,-1581.96,0.00016575,2]
[352753637,1739292652827,-1598.66,0.00016575,2]
[352753638,1739292652840,-500.0,0.00016575,2]
[352753639,1739292652852,-761.15,0.00016575,2]
[352753640,1739292652866,-500.0,0.00016575,2]
[352753641,1739292652881,-500.0,0.00016575,2]
[352753642,1739292652894,-1270.11,0.00016575,2]
[352753643,1739292652908,-737.13,0.00016575,2]
[352753644,1739292652919,-500.0,0.00016575,2]